fUSD/lending_fUSD_20240227
["ID","MTS","AMOUNT","RATE_DAILY","PERIOD"]
[315377715,1708998638418,-500.0,0.00022739,2]
[315377717,1708998638428,-500.0,0.00022739,2]
[315377719,1708998638437,-523.5088828,0.00022739,2]
[315377721,1708998638446,-500.0,0.00022739,2]
[315377723,1708998638455,-500.0,0.00022739,2]
[315377725,1708998638465,-519.74902174,0.00022739,2]
[315377726,1708998638476,-500.0,0.00022739,2]
[315377729,1708998638485,-500.0,0.00022739,2]
[315377731,1708998638495,-500.0,0.00022739,2]
[315377733,1708998638504,-500.0,0.00022739,2]
[315377735,1708998638513,-512.87670002,0.00022739,2]
[315377736,1708998638522,-508.36565889,0.00022739,2]
[315377739,1708998638532,-500.0,0.00022739,2]
[315377741,1708998638543,-500.0,0.00022739,2]
[315377743,1708998638552,-500.0,0.00022739,2]
[315377745,1708998638561,-500.0,0.00022739,2]
[315377746,1708998638573,-500.0,0.00022739,2]
[315377748,1708998638582,-500.0,0.00022739,2]
[315377750,1708998638592,-197.52797635,0.00022739,2]
[315377752,1708998638601,-500.0,0.00022739,2]
[315377754,1708998638610,-500.0,0.00022739,2]
[315377756,1708998638620,-500.0,0.00022739,2]
[315377758,1708998638629,-510.86174108,0.00022739,2]
[315377760,1708998638638,-500.0,0.00022739,2]
[315377762,1708998638647,-511.60356981,0.00022739,2]
[315377764,1708998638657,-500.0,0.00022739,2]
[315377766,1708998638666,-500.0,0.00022739,2]
[315377768,1708998638675,-500.0,0.00022739,2]
[315377770,1708998638684,-220.52547065,0.00022739,2]
[315377772,1708998638693,-500.0,0.00022739,2]
[315377774,1708998638704,-500.0,0.00022739,2]
[315377776,1708998638713,-500.0,0.00022739,2]
[315377778,1708998638723,-500.0,0.00022739,2]
[315377780,1708998638734,-632.40014784,0.00022739,2]
[315377782,1708998638743,-500.0,0.00022739,2]
[315377784,1708998638752,-272.03596979,0.00022739,2]
[315377786,1708998638761,-500.0,0.00022739,2]
[315377788,1708998638771,-500.0,0.00022739,2]
[315377790,1708998638780,-609.35941966,0.00022739,2]
[315377792,1708998638789,-500.0,0.00022739,2]
[315377794,1708998638798,-505.95234614,0.00022739,2]
[315377796,1708998638808,-500.0,0.00022739,2]
[315377798,1708998638819,-505.48523505,0.00022739,2]
[315377800,1708998638828,-500.0,0.00022739,2]
[315377802,1708998638838,-500.0,0.00022739,2]
[315377804,1708998638847,-500.0,0.00022739,2]
[315377806,1708998638856,-500.0,0.00022739,2]
[315377808,1708998638865,-500.0,0.00022739,2]
[315377810,1708998638875,-500.0,0.00022739,2]
[315377812,1708998638883,-500.0,0.00022739,2]
[315377814,1708998638892,-500.0,0.00022739,2]
[315377816,1708998638901,-500.0,0.00022739,2]
[315377818,1708998638910,-500.0,0.00022739,2]
[315377820,1708998638919,-529.61558188,0.00022739,2]
[315377822,1708998638928,-515.76693734,0.00022739,2]
[315377824,1708998638937,-500.0,0.00022739,2]
[315377826,1708998638946,-500.0,0.00022739,2]
[315377828,1708998638955,-500.0,0.00022739,2]
[315377829,1708998638964,-500.0,0.00022739,2]
[315377832,1708998638975,-500.0,0.00022739,2]
[315377833,1708998638984,-521.4304452,0.00022739,2]
[315377836,1708998638994,-500.0,0.00022739,2]
[315377837,1708998639003,-500.0,0.00022739,2]
[315377840,1708998639012,-583.61209576,0.00022739,2]
[315377842,1708998639021,-500.0,0.00022739,2]
[315377844,1708998639031,-500.0,0.00022739,2]
[315377846,1708998639045,-523.08387789,0.00022739,2]
[315377849,1708998639059,-500.0,0.00022739,2]
[315377851,1708998639077,-511.80465376,0.00022739,2]
[315377853,1708998639088,-500.0,0.00022739,2]
[315377856,1708998639102,-500.0,0.00022739,2]
[315377858,1708998639116,-500.0,0.00022739,2]
[315377861,1708998639130,-510.92628495,0.00022739,2]
[315377863,1708998639143,-500.0,0.00022739,2]
[315377866,1708998639156,-500.0,0.00022739,2]
[315377868,1708998639170,-527.61028128,0.00022739,2]
[315377870,1708998639183,-500.0,0.00022739,2]
[315377872,1708998639193,-507.57516297,0.00022739,2]
[315377875,1708998639205,-500.0,0.00022739,2]
[315377877,1708998639218,-514.82389419,0.00022739,2]
[315377879,1708998639231,-500.0,0.00022739,2]
[315377882,1708998639243,-500.0,0.00022739,2]
[315377884,1708998639256,-500.0,0.00022739,2]
[315377887,1708998639269,-524.24914335,0.00022739,2]
[315377889,1708998639283,-500.0,0.00022739,2]
[315377891,1708998639295,-500.0,0.00022739,2]
[315377893,1708998639307,-517.51550321,0.00022739,2]
[315377896,1708998639323,-500.0,0.00022739,2]
[315377898,1708998639336,-500.0,0.00022739,2]
[315377901,1708998639349,-500.0,0.00022739,2]
[315377903,1708998639361,-500.0,0.00022739,2]
[315377905,1708998639372,-500.0,0.00022739,2]
[315377907,1708998639384,-608.8060623,0.00022739,2]
[315377910,1708998639398,-524.83838786,0.00022739,2]
[315377912,1708998639410,-500.0,0.00022739,2]
[315377915,1708998639423,-513.17394997,0.00022739,2]
[315377917,1708998639437,-500.0,0.00022739,2]
[315377920,1708998639451,-500.0,0.00022739,2]
[315377922,1708998639464,-500.0,0.00022739,2]
[315377924,1708998639474,-436.56764781,0.00022739,2]
[315377926,1708998639484,-500.0,0.00022739,2]
[315377928,1708998639494,-522.96712792,0.00022739,2]
[315377931,1708998639506,-500.0,0.00022739,2]
[315377933,1708998639518,-524.11395733,0.00022739,2]
[315377935,1708998639530,-513.12542321,0.00022739,2]
[315377938,1708998639543,-500.0,0.00022739,2]
[315377940,1708998639557,-500.0,0.00022739,2]
[315377942,1708998639569,-500.0,0.00022739,2]
[315377944,1708998639580,-500.0,0.00022739,2]
[315377947,1708998639590,-500.0,0.00022739,2]
[315377949,1708998639602,-500.0,0.00022739,2]
[315377951,1708998639613,-259.21536681,0.00022739,2]
[315377953,1708998639624,-500.0,0.00022739,2]
[315377956,1708998639636,-510.59493208,0.00022739,2]
[315377958,1708998639647,-500.0,0.00022739,2]
[315377960,1708998639658,-500.0,0.00022739,2]
[315377962,1708998639669,-500.0,0.00022739,2]
[315377964,1708998639679,-500.0,0.00022739,2]
[315377967,1708998639694,-500.0,0.00022739,2]
[315377969,1708998639706,-500.0,0.00022739,2]
[315377971,1708998639717,-645.69627396,0.00022739,2]
[315377973,1708998639729,-514.29950579,0.00022739,2]
[315377975,1708998639741,-500.0,0.00022739,2]
[315377978,1708998639753,-500.0,0.00022739,2]
[315377980,1708998639765,-511.73563212,0.00022739,2]
[315377982,1708998639775,-504.580549,0.00022739,2]
[315377984,1708998639786,-500.0,0.00022739,2]
[315377986,1708998639798,-500.0,0.00022739,2]
[315377989,1708998639809,-508.37370315,0.00022739,2]
[315377991,1708998639822,-500.0,0.00022739,2]
[315377993,1708998639834,-500.0,0.00022739,2]
[315377995,1708998639846,-517.72408842,0.00022739,2]
[315377996,1708998639857,-500.0,0.00022739,2]
[315377998,1708998639869,-534.67031157,0.00022739,2]
[315377999,1708998639880,-500.0,0.00022739,2]
[315378001,1708998639893,-515.10618932,0.00022739,2]
[315378002,1708998639904,-500.0,0.00022739,2]
[315378003,1708998639916,-500.0,0.00022739,2]
[315378004,1708998639928,-500.0,0.00022739,2]
[315378005,1708998639940,-500.0,0.00022739,2]
[315378008,1708998639951,-500.0,0.00022739,2]
[315378010,1708998639962,-524.33330462,0.00022739,2]
[315378012,1708998639974,-510.8395425,0.00022739,2]
[315378014,1708998639985,-504.88543333,0.00022739,2]
[315378016,1708998639997,-500.0,0.00022739,2]
[315378019,1708998640009,-500.0,0.00022739,2]
[315378021,1708998640021,-517.11952126,0.00022739,2]
[315378023,1708998640033,-507.10028374,0.00022739,2]
[315378026,1708998640045,-500.0,0.00022739,2]
[315378028,1708998640056,-513.03316437,0.00022739,2]
[315378031,1708998640070,-500.0,0.00022739,2]
[315378033,1708998640080,-500.0,0.00022739,2]
[315378035,1708998640092,-500.0,0.00022739,2]
[315378038,1708998640103,-500.0,0.00022739,2]
[315378040,1708998640114,-509.10252012,0.00022739,2]
[315378042,1708998640125,-500.0,0.00022739,2]
[315378044,1708998640136,-506.5940424,0.00022739,2]
[315378046,1708998640147,-500.0,0.00022739,2]
[315378049,1708998640158,-528.71457068,0.00022739,2]
[315378051,1708998640170,-500.0,0.00022739,2]
[315378053,1708998640181,-531.62431436,0.00022739,2]
[315378055,1708998640193,-500.0,0.00022739,2]
[315378058,1708998640205,-500.0,0.00022739,2]
[315378060,1708998640216,-521.20209442,0.00022739,2]
[315378062,1708998640227,-500.0,0.00022739,2]
[315378064,1708998640238,-500.0,0.00022739,2]
[315378067,1708998640250,-500.0,0.00022739,2]
[315378069,1708998640261,-518.69975372,0.00022739,2]
[315378071,1708998640272,-500.0,0.00022739,2]
[315378073,1708998640284,-503.93231368,0.00022739,2]
[315378075,1708998640294,-500.0,0.00022739,2]
[315378078,1708998640305,-524.67476566,0.00022739,2]
[315378080,1708998640317,-500.0,0.00022739,2]
[315378082,1708998640328,-500.0,0.00022739,2]
[315378084,1708998640339,-523.06983107,0.00022739,2]
[315378086,1708998640350,-520.45283647,0.00022739,2]
[315378089,1708998640361,-500.0,0.00022739,2]
[315378091,1708998640372,-538.87062271,0.00022739,2]
[315378093,1708998640384,-500.0,0.00022739,2]
[315378095,1708998640394,-518.46652151,0.00022739,2]
[315378098,1708998640406,-500.0,0.00022739,2]
[315378100,1708998640417,-520.9608816,0.00022739,2]
[315378102,1708998640428,-530.44500734,0.00022739,2]
[315378104,1708998640439,-500.0,0.00022739,2]
[315378107,1708998640450,-500.0,0.00022739,2]
[315378109,1708998640461,-500.0,0.00022739,2]
[315378111,1708998640472,-520.17844979,0.00022739,2]
[315378113,1708998640483,-510.9278307,0.00022739,2]
[315378116,1708998640494,-500.0,0.00022739,2]
[315378118,1708998640505,-500.0,0.00022739,2]
[315378120,1708998640516,-517.08003022,0.00022739,2]
[315378122,1708998640528,-531.27712148,0.00022739,2]
[315378124,1708998640539,-500.0,0.00022739,2]
[315378127,1708998640551,-241.25438511,0.00022739,2]
[315378129,1708998640562,-500.0,0.00022739,2]
[315378131,1708998640576,-500.0,0.00022739,2]
[315378133,1708998640588,-500.0,0.00022739,2]
[315378135,1708998640600,-511.26859405,0.00022739,2]
[315378138,1708998640612,-521.9173355,0.00022739,2]
[315378140,1708998640623,-500.0,0.00022739,2]
[315378142,1708998640636,-333.9695577,0.00022739,2]
[315378144,1708998640648,-500.0,0.00022739,2]
[315378146,1708998640659,-511.50922889,0.00022739,2]
[315378149,1708998640670,-500.0,0.00022739,2]
[315378151,1708998640683,-500.0,0.00022739,2]
[315378153,1708998640696,-500.0,0.00022739,2]
[315378156,1708998640711,-500.0,0.00022739,2]
[315378158,1708998640725,-500.0,0.00022739,2]
[315378160,1708998640737,-500.0,0.00022739,2]
[315378162,1708998640750,-294.89172161,0.00022739,2]
[315378165,1708998640762,-528.86645853,0.00022739,2]
[315378167,1708998640773,-500.0,0.00022739,2]
[315378169,1708998640784,-512.04761247,0.00022739,2]
[315378171,1708998640797,-500.0,0.00022739,2]
[315378173,1708998640810,-500.0,0.00022739,2]
[315378176,1708998640825,-500.0,0.00022739,2]
[315378178,1708998640836,-527.04950961,0.00022739,2]
[315378180,1708998640847,-500.0,0.00022739,2]
[315378182,1708998640858,-533.73181451,0.00022739,2]
[315378185,1708998640870,-500.0,0.00022739,2]
[315378187,1708998640881,-500.0,0.00022739,2]
[315378189,1708998640893,-500.0,0.00022739,2]
[315378191,1708998640905,-529.45004753,0.00022739,2]
[315378194,1708998640917,-500.0,0.00022739,2]
[315378196,1708998640929,-500.0,0.00022739,2]
[315378198,1708998640940,-500.0,0.00022739,2]
[315378200,1708998640952,-522.98696303,0.00022739,2]
[315378203,1708998640964,-272.03326241,0.00022739,2]
[315378205,1708998640976,-228.7577533,0.00022739,2]
[315378207,1708998640987,-500.0,0.00022739,2]
[315378209,1708998640998,-500.0,0.00022739,2]
[315378212,1708998641009,-629.09132759,0.00022739,2]
[315378214,1708998641021,-500.0,0.00022739,2]
[315378216,1708998641032,-534.04609843,0.00022739,2]
[315378218,1708998641043,-500.0,0.00022739,2]
[315378221,1708998641055,-510.94385667,0.00022739,2]
[315378223,1708998641067,-500.0,0.00022739,2]
[315378225,1708998641078,-500.0,0.00022739,2]
[315378227,1708998641089,-500.0,0.00022739,2]
[315378229,1708998641100,-500.0,0.00022739,2]
[315378231,1708998641111,-500.0,0.00022739,2]
[315378234,1708998641123,-500.0,0.00022739,2]
[315378236,1708998641134,-500.0,0.00022739,2]
[315378238,1708998641145,-592.94220551,0.00022739,2]
[315378240,1708998641157,-500.0,0.00022739,2]
[315378243,1708998641168,-237.44635681,0.00022739,2]
[315378245,1708998641180,-514.44672474,0.00022739,2]
[315378247,1708998641190,-500.0,0.00022739,2]
[315378279,1708998641474,-500.0,0.00022739,2]
[315378283,1708998641506,-500.0,0.00022739,2]
[315378286,1708998641520,-519.19385916,0.00022739,2]
[315378288,1708998641530,-500.0,0.00022739,2]
[315378290,1708998641539,-546.71074587,0.00022739,2]
[315378292,1708998641549,-500.0,0.00022739,2]
[315378294,1708998641558,-500.0,0.00022739,2]
[315378296,1708998641570,-573.88306656,0.00022739,2]
[315378298,1708998641579,-500.0,0.00022739,2]
[315378300,1708998641588,-506.66187546,0.00022739,2]
[315378302,1708998641597,-500.0,0.00022739,2]
[315378304,1708998641607,-500.0,0.00022739,2]
[315378306,1708998641616,-500.0,0.00022739,2]
[315378308,1708998641625,-537.98070015,0.00022739,2]
[315378310,1708998641635,-500.0,0.00022739,2]
[315378312,1708998641644,-500.0,0.00022739,2]
[315378314,1708998641653,-531.55266034,0.00022739,2]
[315378316,1708998641663,-500.0,0.00022739,2]
[315378317,1708998641672,-261.0554499,0.00022739,2]
[315378319,1708998641681,-500.0,0.00022739,2]
[315378321,1708998641691,-500.0,0.00022739,2]
[315378323,1708998641702,-517.67637856,0.00022739,2]
[315378325,1708998641712,-500.0,0.00022739,2]
[315378327,1708998641721,-531.46890756,0.00022739,2]
[315378329,1708998641733,-500.0,0.00022739,2]
[315378331,1708998641742,-536.73509553,0.00022739,2]
[315378333,1708998641752,-550.84980292,0.00022739,2]
[315378335,1708998641761,-500.0,0.00022739,2]
[315378337,1708998641771,-518.39142314,0.00022739,2]
[315378339,1708998641780,-500.0,0.00022739,2]
[315378341,1708998641789,-500.0,0.00022739,2]
[315378343,1708998641800,-500.0,0.00022739,2]
[315378345,1708998641809,-516.69869047,0.00022739,2]
[315378347,1708998641821,-500.0,0.00022739,2]
[315378349,1708998641830,-500.0,0.00022739,2]
[315378351,1708998641840,-500.0,0.00022739,2]
[315378353,1708998641850,-500.0,0.00022739,2]
[315378355,1708998641859,-500.0,0.00022739,2]
[315378357,1708998641869,-500.0,0.00022739,2]
[315378359,1708998641877,-500.0,0.00022739,2]
[315378361,1708998641886,-500.0,0.00022739,2]
[315378363,1708998641896,-500.0,0.00022739,2]
[315378365,1708998641905,-508.84131541,0.00022739,2]
[315378367,1708998641914,-500.0,0.00022739,2]
[315378369,1708998641923,-500.0,0.00022739,2]
[315378371,1708998641932,-535.63238719,0.00022739,2]
[315378373,1708998641941,-538.10708868,0.00022739,2]
[315378375,1708998641950,-532.30414586,0.00022739,2]
[315378377,1708998641960,-500.0,0.00022739,2]
[315378379,1708998641969,-510.90824826,0.00022739,2]
[315378382,1708998641987,-500.0,0.00022739,2]
[315378384,1708998642000,-500.0,0.00022739,2]
[315378386,1708998642009,-500.0,0.00022739,2]
[315378389,1708998642019,-500.0,0.00022739,2]
[315378391,1708998642028,-500.0,0.00022739,2]
[315378393,1708998642038,-500.0,0.00022739,2]
[315378395,1708998642047,-637.68754541,0.00022739,2]
[315378397,1708998642057,-500.0,0.00022739,2]
[315378399,1708998642067,-500.0,0.00022739,2]
[315378401,1708998642076,-527.41218665,0.00022739,2]
[315378403,1708998642087,-536.64669931,0.00022739,2]
[315378405,1708998642097,-500.0,0.00022739,2]
[315378407,1708998642106,-500.0,0.00022739,2]
[315378409,1708998642116,-500.0,0.00022739,2]
[315378411,1708998642126,-204.5459354,0.00022739,2]
[315378413,1708998642135,-500.0,0.00022739,2]
[315378415,1708998642144,-500.0,0.00022739,2]
[315378417,1708998642154,-500.0,0.00022739,2]
[315378419,1708998642163,-511.7506471,0.00022739,2]
[315378421,1708998642173,-500.0,0.00022739,2]
[315378423,1708998642182,-500.0,0.00022739,2]
[315378425,1708998642191,-500.0,0.00022739,2]
[315378427,1708998642201,-500.0,0.00022739,2]
[315378429,1708998642211,-500.0,0.00022739,2]
[315378431,1708998642221,-500.0,0.00022739,2]
[315378433,1708998642230,-500.0,0.00022739,2]
[315378435,1708998642240,-500.0,0.00022739,2]
[315378437,1708998642249,-500.0,0.00022739,2]
[315378439,1708998642258,-500.0,0.00022739,2]
[315378441,1708998642268,-527.2834902,0.00022739,2]
[315378443,1708998642278,-510.91815923,0.00022739,2]
[315378446,1708998642287,-500.0,0.00022739,2]
[315378448,1708998642297,-517.98383575,0.00022739,2]
[315378450,1708998642307,-500.0,0.00022739,2]
[315378452,1708998642318,-500.0,0.00022739,2]
[315378454,1708998642327,-500.0,0.00022739,2]
[315378455,1708998642337,-500.0,0.00022739,2]
[315378456,1708998642346,-500.0,0.00022739,2]
[315378457,1708998642355,-500.0,0.00022739,2]
[315378458,1708998642365,-500.0,0.00022739,2]
[315378459,1708998642375,-500.0,0.00022739,2]
[315378460,1708998642384,-512.23977434,0.00022739,2]
[315378461,1708998642394,-500.0,0.00022739,2]
[315378462,1708998642403,-500.0,0.00022739,2]
[315378463,1708998642411,-500.0,0.00022739,2]
[315378465,1708998642425,-500.0,0.00022739,2]
[315378467,1708998642435,-500.0,0.00022739,2]
[315378469,1708998642445,-500.0,0.00022739,2]
[315378471,1708998642454,-500.0,0.00022739,2]
[315378473,1708998642464,-500.0,0.00022739,2]
[315378475,1708998642474,-500.0,0.00022739,2]
[315378477,1708998642483,-229.67414469,0.00022739,2]
[315378479,1708998642493,-500.0,0.00022739,2]
[315378481,1708998642502,-500.0,0.00022739,2]
[315378483,1708998642512,-500.0,0.00022739,2]
[315378485,1708998642522,-500.0,0.00022739,2]
[315378488,1708998642533,-500.0,0.00022739,2]
[315378490,1708998642543,-500.0,0.00022739,2]
[315378492,1708998642552,-362.29347817,0.00022739,2]
[315378494,1708998642562,-500.0,0.00022739,2]
[315378496,1708998642575,-500.0,0.00022739,2]
[315378498,1708998642584,-500.0,0.00022739,2]
[315378500,1708998642594,-500.0,0.00022739,2]
[315378502,1708998642604,-500.0,0.00022739,2]
[315378504,1708998642614,-500.0,0.00022739,2]
[315378506,1708998642624,-500.0,0.00022739,2]
[315378508,1708998642634,-500.0,0.00022739,2]
[315378510,1708998642644,-500.0,0.00022739,2]
[315378512,1708998642654,-500.0,0.00022739,2]
[315378514,1708998642663,-521.68537343,0.00022739,2]
[315378516,1708998642673,-500.0,0.00022739,2]
[315378518,1708998642683,-500.0,0.00022739,2]
[315378520,1708998642694,-500.0,0.00022739,2]
[315378522,1708998642705,-500.0,0.00022739,2]
[315378524,1708998642715,-500.0,0.00022739,2]
[315378526,1708998642725,-500.0,0.00022739,2]
[315378528,1708998642736,-500.0,0.00022739,2]
[315378530,1708998642747,-500.0,0.00022739,2]
[315378533,1708998642757,-500.0,0.00022739,2]
[315378534,1708998642767,-500.0,0.00022739,2]
[315378537,1708998642778,-164.64,0.00022739,2]
[315378539,1708998642787,-500.0,0.00022739,2]
[315378541,1708998642797,-500.0,0.00022739,2]
[315378543,1708998642806,-500.0,0.00022739,2]
[315378545,1708998642818,-500.0,0.00022739,2]
[315378547,1708998642827,-413.96172173,0.00022739,2]
[315378549,1708998642837,-536.69978645,0.00022739,2]
[315378551,1708998642846,-500.0,0.00022739,2]
[315378553,1708998642856,-505.27844937,0.00022739,2]
[315378555,1708998642869,-500.0,0.00022739,2]
[315378557,1708998642879,-505.11254206,0.00022739,2]
[315378560,1708998642889,-500.0,0.00022739,2]
[315378562,1708998642898,-500.0,0.00022739,2]
[315378564,1708998642908,-500.0,0.00022739,2]
[315378566,1708998642918,-531.12153344,0.00022739,2]
[315378568,1708998642928,-500.0,0.00022739,2]
[315378570,1708998642938,-504.74646489,0.00022739,2]
[315378572,1708998642948,-524.54296584,0.00022739,2]
[315378574,1708998642957,-500.0,0.00022739,2]
[315378576,1708998642967,-500.0,0.00022739,2]
[315378578,1708998642977,-500.0,0.00022739,2]
[315378580,1708998642986,-294.22637751,0.00022739,2]
[315378582,1708998642996,-500.0,0.00022739,2]
[315378584,1708998643006,-509.53495268,0.00022739,2]
[315378586,1708998643016,-521.87484572,0.00022739,2]
[315378589,1708998643027,-500.0,0.00022739,2]
[315378591,1708998643037,-249.13133743,0.00022739,2]
[315378593,1708998643047,-500.0,0.00022739,2]
[315378595,1708998643057,-500.0,0.00022739,2]
[315378597,1708998643068,-506.6769438,0.00022739,2]
[315378599,1708998643078,-501.54756773,0.00022739,2]
[315378601,1708998643087,-500.0,0.00022739,2]
[315378603,1708998643097,-500.0,0.00022739,2]
[315378605,1708998643107,-527.38781942,0.00022739,2]
[315378607,1708998643117,-500.0,0.00022739,2]
[315378609,1708998643126,-500.0,0.00022739,2]
[315378611,1708998643135,-500.0,0.00022739,2]
[315378613,1708998643149,-500.0,0.00022739,2]
[315378615,1708998643159,-529.91359199,0.00022739,2]
[315378617,1708998643168,-500.0,0.00022739,2]
[315378619,1708998643178,-500.0,0.00022739,2]
[315378621,1708998643187,-500.0,0.00022739,2]
[315378624,1708998643198,-500.0,0.00022739,2]
[315378626,1708998643209,-512.86776417,0.00022739,2]
[315378628,1708998643218,-500.0,0.00022739,2]
[315378630,1708998643228,-511.84899613,0.00022739,2]
[315378632,1708998643238,-500.0,0.00022739,2]
[315378634,1708998643248,-500.0,0.00022739,2]
[315378636,1708998643257,-362.37,0.00022739,2]
[315378638,1708998643266,-500.0,0.00022739,2]
[315378640,1708998643276,-500.0,0.00022739,2]
[315378642,1708998643286,-500.0,0.00022739,2]
[315378644,1708998643295,-500.0,0.00022739,2]
[315378646,1708998643305,-505.96852836,0.00022739,2]
[315378648,1708998643315,-500.0,0.00022739,2]
[315378650,1708998643327,-174.34019889,0.00022739,2]
[315378652,1708998643336,-457.53342579,0.00022739,2]
[315378654,1708998643346,-500.0,0.00022739,2]
[315378656,1708998643355,-500.0,0.00022739,2]
[315378659,1708998643365,-500.0,0.00022739,2]
[315378661,1708998643375,-500.0,0.00022739,2]
[315378663,1708998643384,-512.54004309,0.00022739,2]
[315378665,1708998643394,-500.0,0.00022739,2]
[315378667,1708998643404,-544.68045207,0.00022739,2]
[315378669,1708998643413,-500.0,0.00022739,2]
[315378671,1708998643423,-500.0,0.00022739,2]
[315378673,1708998643432,-459.75978901,0.00022739,2]
[315378675,1708998643441,-500.0,0.00022739,2]
[315378677,1708998643450,-500.0,0.00022739,2]
[315378679,1708998643460,-500.0,0.00022739,2]
[315378681,1708998643470,-500.0,0.00022739,2]
[315378683,1708998643480,-535.5582562,0.00022739,2]
[315378685,1708998643490,-500.0,0.00022739,2]
[315378687,1708998643500,-500.0,0.00022739,2]
[315378689,1708998643510,-505.80875026,0.00022739,2]
[315378691,1708998643520,-500.0,0.00022739,2]
[315378694,1708998643529,-500.0,0.00022739,2]
[315378696,1708998643539,-500.0,0.00022739,2]
[315378698,1708998643549,-500.0,0.00022739,2]
[315378700,1708998643559,-516.4031667,0.00022739,2]
[315378702,1708998643571,-500.0,0.00022739,2]
[315378704,1708998643580,-500.0,0.00022739,2]
[315378706,1708998643590,-512.45175949,0.00022739,2]
[315378708,1708998643599,-550.32499766,0.00022739,2]
[315378710,1708998643609,-500.0,0.00022739,2]
[315378712,1708998643619,-500.0,0.00022739,2]
[315378714,1708998643629,-502.79871005,0.00022739,2]
[315378716,1708998643639,-500.0,0.00022739,2]
[315378718,1708998643649,-560.93526569,0.00022739,2]
[315378720,1708998643659,-503.18131269,0.00022739,2]
[315378722,1708998643669,-500.0,0.00022739,2]
[315378724,1708998643679,-503.48421908,0.00022739,2]
[315378727,1708998643689,-500.0,0.00022739,2]
[315378729,1708998643704,-564.89131548,0.00022739,2]
[315378731,1708998643714,-500.0,0.00022739,2]
[315378733,1708998643724,-500.0,0.00022739,2]
[315378735,1708998643734,-500.0,0.00022739,2]
[315378737,1708998643747,-500.0,0.00022739,2]
[315378739,1708998643757,-500.0,0.00022739,2]
[315378741,1708998643768,-500.0,0.00022739,2]
[315378743,1708998643781,-500.0,0.00022739,2]
[315378745,1708998643791,-500.0,0.00022739,2]
[315378747,1708998643801,-500.0,0.00022739,2]
[315378749,1708998643811,-500.0,0.00022739,2]
[315378751,1708998643823,-512.80224572,0.00022739,2]
[315378753,1708998643833,-500.0,0.00022739,2]
[315378755,1708998643843,-500.0,0.00022739,2]
[315378757,1708998643853,-500.0,0.00022739,2]
[315378759,1708998643863,-500.0,0.00022739,2]
[315378761,1708998643872,-500.0,0.00022739,2]
[315378763,1708998643881,-500.0,0.00022739,2]
[315378765,1708998643892,-500.0,0.00022739,2]
[315378767,1708998643902,-500.0,0.00022739,2]
[315378769,1708998643913,-482.90120393,0.00022739,2]
[315378771,1708998643924,-513.8744278,0.00022739,2]
[315378773,1708998643935,-500.0,0.00022739,2]
[315378775,1708998643946,-640.91,0.00022739,2]
[315378777,1708998643957,-504.13801175,0.00022739,2]
[315378779,1708998643968,-640.91,0.00022739,2]
[315378781,1708998643979,-640.91,0.00022739,2]
[315378783,1708998643990,-640.91,0.00022739,2]
[315378785,1708998644000,-640.91,0.00022739,2]